[Event "Titled Tuesday Blitz June 27 Early 2023"]
[White "BenchGM"]
[Black "Tarnowska, Aleksandra"]
[BlackFideId "1180967"]
[WhiteElo "2368"]
[BlackElo "2155"]
[Result "1-0"]
[Round "10"]
[TimeControl "180+2"]
[Date "2023.06.27"]
[WhiteClock "0:00:24"]
[BlackClock "0:00:12"]
[Board "123"]

1. e4 {[%clk 0:03:00]}  c5 {[%clk 0:02:59]} 2. Nf3 {[%clk 0:03:00]}  e6 {[%clk 0:02:59]} 3. d4 {[%clk 0:03:00]}  cxd4 {[%clk 0:03:00]} 4. Nxd4 {[%clk 0:03:01]}  a6 {[%clk 0:03:01]} 5. c4 {[%clk 0:03:01]}  Nf6 {[%clk 0:03:00]} 6. Nc3 {[%clk 0:03:01]}  Bb4 {[%clk 0:03:01]} 7. Qd3 {[%clk 0:03:01]}  Qc7 {[%clk 0:03:02]} 8. f3 {[%clk 0:02:31]}  Nc6 {[%clk 0:03:00]} 9. Nxc6 {[%clk 0:02:28]}  dxc6 {[%clk 0:02:58]} 10. a3 {[%clk 0:02:24]}  Bxc3+ {[%clk 0:02:55]} 11. Qxc3 {[%clk 0:02:24]}  e5 {[%clk 0:02:52]} 12. Bg5 {[%clk 0:02:20]}  Be6 {[%clk 0:02:44]} 13. O-O-O {[%clk 0:02:16]}  h6 {[%clk 0:02:41]} 14. Bxf6 {[%clk 0:02:14]}  gxf6 {[%clk 0:02:42]} 15. g4 {[%clk 0:02:06]}  Ke7 {[%clk 0:02:30]} 16. Be2 {[%clk 0:02:03]}  Rhd8 {[%clk 0:02:19]} 17. Qe3 {[%clk 0:01:58]}  Qa5 {[%clk 0:01:28]} 18. Qxh6 {[%clk 0:01:46]}  Qa4 {[%clk 0:01:09]} 19. g5 {[%clk 0:01:43]}  fxg5 {[%clk 0:00:49]} 20. Qxg5+ {[%clk 0:01:42]}  f6 {[%clk 0:00:50]} 21. Qg7+ {[%clk 0:01:40]}  Bf7 {[%clk 0:00:50]} 22. Rhg1 {[%clk 0:01:15]}  c5 {[%clk 0:00:15]} 23. Rxd8 {[%clk 0:01:13]}  Rxd8 {[%clk 0:00:15]} 24. Rg6 {[%clk 0:01:12]}  Qc6 {[%clk 0:00:11]} 25. Rh6 {[%clk 0:01:11]}  Qd6 {[%clk 0:00:07]} 26. Kb1 {[%clk 0:01:06]}  Qd2 {[%clk 0:00:05]} 27. Qxf6+ {[%clk 0:01:05]}  Kd7 {[%clk 0:00:02]} 28. Qxf7+ {[%clk 0:01:05]}  Kc8 {[%clk 0:00:02]} 29. Qe6+ {[%clk 0:01:03]}  Kb8 {[%clk 0:00:02]} 30. Qxe5+ {[%clk 0:01:04]}  Ka8 {[%clk 0:00:02]} 31. Rh8 {[%clk 0:00:51]}  Rxh8 {[%clk 0:00:01]} 32. Qxh8+ {[%clk 0:00:51]}  Ka7 {[%clk 0:00:02]} 33. Qe5 {[%clk 0:00:46]}  Qe1+ {[%clk 0:00:02]} 34. Ka2 {[%clk 0:00:44]}  Qxe2 {[%clk 0:00:02]} 35. Qxc5+ {[%clk 0:00:44]}  Ka8 {[%clk 0:00:03]} 36. e5 {[%clk 0:00:39]}  Qxf3 {[%clk 0:00:03]} 37. e6 {[%clk 0:00:36]}  Qe4 {[%clk 0:00:02]} 38. e7 {[%clk 0:00:36]}  Kb8 {[%clk 0:00:03]} 39. Qd6+ {[%clk 0:00:36]}  Ka7 {[%clk 0:00:03]} 40. Qc5+ {[%clk 0:00:25]}  Kb8 {[%clk 0:00:03]} 41. Qb4 {[%clk 0:00:21]}  b5 {[%clk 0:00:03]} 42. cxb5 {[%clk 0:00:19]}  Qe6+ {[%clk 0:00:03]} 43. Qb3 {[%clk 0:00:18]}  Qxe7 {[%clk 0:00:03]} 44. bxa6+ {[%clk 0:00:18]}  Ka7 {[%clk 0:00:03]} 45. Qb7+ {[%clk 0:00:19]}  Qxb7 {[%clk 0:00:04]} 46. axb7 {[%clk 0:00:19]}  Kxb7 {[%clk 0:00:05]} 47. Kb3 {[%clk 0:00:19]}  Kc6 {[%clk 0:00:06]} 48. Kb4 {[%clk 0:00:20]}  Kd5 {[%clk 0:00:06]} 49. a4 {[%clk 0:00:20]}  Kc6 {[%clk 0:00:07]} 50. a5 {[%clk 0:00:21]}  Kb7 {[%clk 0:00:07]} 51. h4 {[%clk 0:00:21]}  Kc6 {[%clk 0:00:07]} 52. h5 {[%clk 0:00:22]}  Kb7 {[%clk 0:00:07]} 53. h6 {[%clk 0:00:23]}  Kc6 {[%clk 0:00:07]} 54. h7 {[%clk 0:00:24]}  Kb7 {[%clk 0:00:08]} 55. h8=Q {[%clk 0:00:24]}  Ka6 {[%clk 0:00:09]} 56. Qh6+ {[%clk 0:00:24]}  Kb7 {[%clk 0:00:10]} 57. Qb6+ {[%clk 0:00:24]}  Ka8 {[%clk 0:00:10]} 58. Qc6+ {[%clk 0:00:24]}  Ka7 {[%clk 0:00:11]} 59. Qd7+ {[%clk 0:00:23]}  Ka6 {[%clk 0:00:11]} 60. Qc8+ {[%clk 0:00:22]}  Ka7 {[%clk 0:00:11]} 61. Qc5+ {[%clk 0:00:22]}  Ka6 {[%clk 0:00:11]} 62. Qb5+ {[%clk 0:00:23]}  Ka7 {[%clk 0:00:11]} 63. Kc5 {[%clk 0:00:23]}  Ka8 {[%clk 0:00:12]} 64. Kc6 {[%clk 0:00:24]}  Ka7 {[%clk 0:00:12]} 65. Qb7# {[%clk 0:00:24]} 1-0


[Site "https://www.chess.com"]

[Event "Titled Tuesday Blitz June 27 Early 2023"]
[White "Ajavon, Anthony Obieni"]
[Black "rikchessmx"]
[WhiteFideId "12600784"]
[WhiteElo "2010"]
[BlackElo "2301"]
[Result "0-1"]
[Round "10"]
[TimeControl "180+2"]
[Date "2023.06.27"]
[WhiteClock "0:00:04"]
[BlackClock "0:01:10"]
[Board "126"]

1. d4 {[%clk 0:03:00]}  Nf6 {[%clk 0:02:59]} 2. c4 {[%clk 0:03:01]}  e6 {[%clk 0:02:59]} 3. Nc3 {[%clk 0:02:58]}  d5 {[%clk 0:02:58]} 4. Bg5 {[%clk 0:02:57]}  c6 {[%clk 0:02:57]} 5. e3 {[%clk 0:02:57]}  Nbd7 {[%clk 0:02:55]} 6. cxd5 {[%clk 0:02:56]}  exd5 {[%clk 0:02:54]} 7. Nf3 {[%clk 0:02:50]}  Be7 {[%clk 0:02:54]} 8. Bd3 {[%clk 0:02:49]}  O-O {[%clk 0:02:54]} 9. Qc2 {[%clk 0:02:49]}  Re8 {[%clk 0:02:54]} 10. O-O-O {[%clk 0:02:38]}  g6 {[%clk 0:02:51]} 11. h4 {[%clk 0:02:26]}  Nf8 {[%clk 0:02:44]} 12. Ne5 {[%clk 0:02:22]}  Ng4 {[%clk 0:02:36]} 13. Nxg4 {[%clk 0:02:06]}  Bxg4 {[%clk 0:02:33]} 14. f3 {[%clk 0:02:06]}  Bxg5 {[%clk 0:02:27]} 15. hxg5 {[%clk 0:02:02]}  Bc8 {[%clk 0:02:23]} 16. e4 {[%clk 0:01:36]}  Qxg5+ {[%clk 0:02:22]} 17. Kb1 {[%clk 0:01:36]}  Be6 {[%clk 0:02:16]} 18. Rdf1 {[%clk 0:01:16]}  Rac8 {[%clk 0:02:02]} 19. f4 {[%clk 0:01:12]}  Qd8 {[%clk 0:01:57]} 20. e5 {[%clk 0:01:06]}  c5 {[%clk 0:01:55]} 21. dxc5 {[%clk 0:00:58]}  Rxc5 {[%clk 0:01:54]} 22. Qf2 {[%clk 0:00:46]}  Rxc3 {[%clk 0:01:42]} 23. bxc3 {[%clk 0:00:42]}  Qa5 {[%clk 0:01:41]} 24. Qb2 {[%clk 0:00:31]}  Rc8 {[%clk 0:01:37]} 25. Qb4 {[%clk 0:00:23]}  Qc7 {[%clk 0:01:33]} 26. Rc1 {[%clk 0:00:20]}  a5 {[%clk 0:01:32]} 27. Qb2 {[%clk 0:00:17]}  b5 {[%clk 0:01:31]} 28. Ka1 {[%clk 0:00:09]}  Rb8 {[%clk 0:01:31]} 29. Qe2 {[%clk 0:00:08]}  Qc5 {[%clk 0:01:28]} 30. g4 {[%clk 0:00:07]}  d4 {[%clk 0:01:25]} 31. f5 {[%clk 0:00:06]}  Bd5 {[%clk 0:01:24]} 32. f6 {[%clk 0:00:05]}  Bxh1 {[%clk 0:01:20]} 33. Qh2 {[%clk 0:00:02]}  Qxe5 {[%clk 0:01:16]} 34. Qxe5 {[%clk 0:00:01]}  dxc3 {[%clk 0:01:15]} 35. Qxb8 {[%clk 0:00:01]}  b4 {[%clk 0:01:14]} 36. Re1 {[%clk 0:00:01]}  h5 {[%clk 0:01:12]} 37. Re8 {[%clk 0:00:01]}  Kh7 {[%clk 0:01:12]} 38. Rxf8 {[%clk 0:00:02]}  Kh6 {[%clk 0:01:13]} 39. Rxf7 {[%clk 0:00:02]}  Kg5 {[%clk 0:01:13]} 40. Rh7 {[%clk 0:00:03]}  Be4 {[%clk 0:01:11]} 41. Rh6 {[%clk 0:00:04]}  Bxd3 {[%clk 0:01:11]} 42. Qf8 {[%clk 0:00:03]}  c2 {[%clk 0:01:11]} 43. f7 {[%clk 0:00:04]}  c1=Q# {[%clk 0:01:10]} 0-1


[Site "https://www.chess.com"]

[Event "Titled Tuesday Blitz June 27 Early 2023"]
[White "Skiadopoulos, Nikolaos"]
[Black "Mishra, Manoj"]
[WhiteFideId "4200772"]
[BlackFideId "5006007"]
[WhiteElo "1927"]
[BlackElo "2209"]
[Result "0-1"]
[Round "10"]
[TimeControl "180+2"]
[Date "2023.06.27"]
[WhiteClock "0:00:22"]
[BlackClock "0:01:17"]
[Board "127"]

1. e4 {[%clk 0:02:45]}  c5 {[%clk 0:02:57]} 2. b4 {[%clk 0:02:44]}  cxb4 {[%clk 0:02:56]} 3. a3 {[%clk 0:02:44]}  e5 {[%clk 0:02:55]} 4. axb4 {[%clk 0:02:43]}  Bxb4 {[%clk 0:02:56]} 5. c3 {[%clk 0:02:42]}  Ba5 {[%clk 0:02:55]} 6. Nf3 {[%clk 0:02:38]}  Nc6 {[%clk 0:02:53]} 7. Bb5 {[%clk 0:02:35]}  Bc7 {[%clk 0:02:44]} 8. O-O {[%clk 0:02:30]}  Nf6 {[%clk 0:02:41]} 9. d4 {[%clk 0:02:28]}  O-O {[%clk 0:02:38]} 10. dxe5 {[%clk 0:02:21]}  Nxe5 {[%clk 0:02:33]} 11. Nxe5 {[%clk 0:02:16]}  Bxe5 {[%clk 0:02:34]} 12. Be3 {[%clk 0:02:11]}  Nxe4 {[%clk 0:02:29]} 13. f4 {[%clk 0:02:05]}  Bxc3 {[%clk 0:02:27]} 14. Qd3 {[%clk 0:02:01]}  Bxa1 {[%clk 0:02:23]} 15. Qxe4 {[%clk 0:02:00]}  d5 {[%clk 0:02:21]} 16. Qd3 {[%clk 0:01:43]}  a6 {[%clk 0:02:11]} 17. Ba4 {[%clk 0:01:41]}  d4 {[%clk 0:02:09]} 18. Bc2 {[%clk 0:01:36]}  g6 {[%clk 0:02:07]} 19. Bf2 {[%clk 0:01:30]}  Bf5 {[%clk 0:02:06]} 20. Qd1 {[%clk 0:01:29]}  Bxc2 {[%clk 0:01:59]} 21. Qxc2 {[%clk 0:01:28]}  d3 {[%clk 0:01:59]} 22. Qa2 {[%clk 0:01:28]}  Bg7 {[%clk 0:01:58]} 23. Nd2 {[%clk 0:01:27]}  Re8 {[%clk 0:01:57]} 24. f5 {[%clk 0:01:24]}  Re2 {[%clk 0:01:54]} 25. fxg6 {[%clk 0:01:23]}  hxg6 {[%clk 0:01:54]} 26. Bc5 {[%clk 0:00:47]}  Qg5 {[%clk 0:01:41]} 27. Qxf7+ {[%clk 0:00:38]}  Kh8 {[%clk 0:01:35]} 28. Bf2 {[%clk 0:00:30]}  Rf8 {[%clk 0:01:32]} 29. Nf3 {[%clk 0:00:26]}  Rxf7 {[%clk 0:01:16]} 30. Nxg5 {[%clk 0:00:25]}  Rfxf2 {[%clk 0:01:16]} 31. Rxf2 {[%clk 0:00:25]}  Re1+ {[%clk 0:01:15]} 32. Rf1 {[%clk 0:00:24]}  Bd4+ {[%clk 0:01:16]} 33. Kh1 {[%clk 0:00:22]}  Rxf1# {[%clk 0:01:17]} 0-1


[Site "https://www.chess.com"]

[Event "Titled Tuesday Blitz June 27 Early 2023"]
[White "Dahlgren, James Allen"]
[Black "Guevara Sanchez, Erick Marvin"]
[WhiteFideId "22256873"]
[BlackFideId "6700136"]
[WhiteElo "2129"]
[BlackElo "1989"]
[Result "0-1"]
[Round "10"]
[TimeControl "180+2"]
[Date "2023.06.27"]
[WhiteClock "0:00:49"]
[BlackClock "0:01:08"]
[Board "130"]

1. d3 {[%clk 0:03:00]}  e5 {[%clk 0:02:57]} 2. f4 {[%clk 0:03:01]}  Bd6 {[%clk 0:02:53]} 3. f5 {[%clk 0:03:00]}  e4 {[%clk 0:02:49]} 4. g3 {[%clk 0:02:53]}  Nf6 {[%clk 0:02:46]} 5. Nc3 {[%clk 0:02:50]}  exd3 {[%clk 0:02:39]} 6. cxd3 {[%clk 0:02:51]}  O-O {[%clk 0:02:38]} 7. Nf3 {[%clk 0:02:46]}  Re8 {[%clk 0:02:32]} 8. Bg2 {[%clk 0:02:45]}  Nc6 {[%clk 0:02:28]} 9. O-O {[%clk 0:02:44]}  Bc5+ {[%clk 0:02:26]} 10. d4 {[%clk 0:02:43]}  Bb6 {[%clk 0:02:25]} 11. Qd3 {[%clk 0:02:41]}  Ne7 {[%clk 0:02:13]} 12. e4 {[%clk 0:02:25]}  d5 {[%clk 0:02:05]} 13. Ne5 {[%clk 0:02:15]}  dxe4 {[%clk 0:02:02]} 14. Bxe4 {[%clk 0:02:15]}  Qxd4+ {[%clk 0:02:00]} 15. Kg2 {[%clk 0:01:59]}  Qxe5 {[%clk 0:01:59]} 16. Bf4 {[%clk 0:01:58]}  Qd4 {[%clk 0:01:55]} 17. Rae1 {[%clk 0:01:56]}  Qxd3 {[%clk 0:01:42]} 18. Bxd3 {[%clk 0:01:55]}  Bd7 {[%clk 0:01:39]} 19. Bg5 {[%clk 0:01:44]}  Bc6+ {[%clk 0:01:34]} 20. Kh3 {[%clk 0:01:41]}  Ned5 {[%clk 0:01:33]} 21. g4 {[%clk 0:01:37]}  Nxc3 {[%clk 0:01:32]} 22. bxc3 {[%clk 0:01:29]}  Rxe1 {[%clk 0:01:31]} 23. Rxe1 {[%clk 0:01:29]}  Re8 {[%clk 0:01:30]} 24. Rxe8+ {[%clk 0:01:27]}  Nxe8 {[%clk 0:01:30]} 25. Be7 {[%clk 0:01:24]}  Nd6 {[%clk 0:01:27]} 26. Kg3 {[%clk 0:01:21]}  Ba5 {[%clk 0:01:25]} 27. c4 {[%clk 0:01:16]}  Bc3 {[%clk 0:01:21]} 28. Kf4 {[%clk 0:01:16]}  b5 {[%clk 0:01:17]} 29. Bxd6 {[%clk 0:01:15]}  bxc4 {[%clk 0:01:12]} 30. Bxc4 {[%clk 0:01:01]}  cxd6 {[%clk 0:01:12]} 31. g5 {[%clk 0:01:01]}  d5 {[%clk 0:01:11]} 32. Bb3 {[%clk 0:01:01]}  d4 {[%clk 0:01:10]} 33. g6 {[%clk 0:00:59]}  hxg6 {[%clk 0:01:09]} 34. fxg6 {[%clk 0:01:00]}  Be8 {[%clk 0:01:09]} 35. Ke4 {[%clk 0:00:55]}  Kf8 {[%clk 0:01:08]} 36. gxf7 {[%clk 0:00:49]}  Bxf7 {[%clk 0:01:08]} 0-1


[Site "https://www.chess.com"]

[Event "Titled Tuesday Blitz June 27 Early 2023"]
[White "Hakobyan, Aram"]
[Black "Galchenko, Matvey"]
[WhiteFideId "13306677"]
[BlackFideId "24175480"]
[WhiteElo "3016"]
[BlackElo "2893"]
[Result "1-0"]
[Round "11"]
[TimeControl "180+2"]
[Date "2023.06.27"]
[WhiteClock "0:01:31"]
[BlackClock "0:00:49"]
[Board "2"]

1. d4 {[%clk 0:03:00]}  Nf6 {[%clk 0:02:50]} 2. c4 {[%clk 0:03:01]}  c5 {[%clk 0:02:50]} 3. d5 {[%clk 0:03:01]}  e6 {[%clk 0:02:50]} 4. Nc3 {[%clk 0:03:01]}  exd5 {[%clk 0:02:51]} 5. cxd5 {[%clk 0:03:02]}  d6 {[%clk 0:02:52]} 6. e4 {[%clk 0:03:01]}  g6 {[%clk 0:02:53]} 7. f4 {[%clk 0:02:59]}  Bg7 {[%clk 0:02:53]} 8. Bb5+ {[%clk 0:02:59]}  Nfd7 {[%clk 0:02:54]} 9. Bd3 {[%clk 0:02:58]}  Qh4+ {[%clk 0:02:52]} 10. g3 {[%clk 0:02:56]}  Qe7 {[%clk 0:02:53]} 11. Nf3 {[%clk 0:02:57]}  Nb6 {[%clk 0:02:51]} 12. h3 {[%clk 0:02:40]}  O-O {[%clk 0:02:49]} 13. Kf2 {[%clk 0:02:36]}  Na6 {[%clk 0:02:46]} 14. Kg2 {[%clk 0:02:34]}  c4 {[%clk 0:02:43]} 15. Bc2 {[%clk 0:02:33]}  Nc5 {[%clk 0:02:32]} 16. Re1 {[%clk 0:02:29]}  Nbd7 {[%clk 0:02:17]} 17. Be3 {[%clk 0:02:27]}  a6 {[%clk 0:02:05]} 18. Bd4 {[%clk 0:02:22]}  f6 {[%clk 0:02:05]} 19. b4 {[%clk 0:02:19]}  cxb3 {[%clk 0:01:43]} 20. axb3 {[%clk 0:02:20]}  b5 {[%clk 0:01:22]} 21. b4 {[%clk 0:02:17]}  Na4 {[%clk 0:01:20]} 22. Nxa4 {[%clk 0:02:17]}  bxa4 {[%clk 0:01:21]} 23. Bxa4 {[%clk 0:02:17]}  Bb7 {[%clk 0:01:22]} 24. Bc6 {[%clk 0:02:15]}  Rab8 {[%clk 0:01:17]} 25. Qd2 {[%clk 0:02:00]}  Rfc8 {[%clk 0:01:14]} 26. Ba7 {[%clk 0:01:51]}  Bxc6 {[%clk 0:01:12]} 27. dxc6 {[%clk 0:01:48]}  Nb6 {[%clk 0:01:07]} 28. Bxb8 {[%clk 0:01:47]}  Rxb8 {[%clk 0:01:08]} 29. Rxa6 {[%clk 0:01:47]}  Qc7 {[%clk 0:01:09]} 30. b5 {[%clk 0:01:47]}  f5 {[%clk 0:01:02]} 31. exf5 {[%clk 0:01:47]}  gxf5 {[%clk 0:01:02]} 32. Qd3 {[%clk 0:01:47]}  Qf7 {[%clk 0:01:02]} 33. Ng5 {[%clk 0:01:43]}  Qd5+ {[%clk 0:00:59]} 34. Qxd5+ {[%clk 0:01:43]}  Nxd5 {[%clk 0:01:00]} 35. b6 {[%clk 0:01:38]}  Rxb6 {[%clk 0:00:57]} 36. Rxb6 {[%clk 0:01:37]}  Nxb6 {[%clk 0:00:58]} 37. c7 {[%clk 0:01:34]}  Kf8 {[%clk 0:00:50]} 38. Ne6+ {[%clk 0:01:29]}  Kf7 {[%clk 0:00:51]} 39. Nxg7 {[%clk 0:01:30]}  Kxg7 {[%clk 0:00:50]} 40. Rb1 {[%clk 0:01:31]}  Nc8 {[%clk 0:00:50]} 41. Rb8 {[%clk 0:01:31]}  Ne7 {[%clk 0:00:50]} 42. Re8 {[%clk 0:01:31]}  Kf7 {[%clk 0:00:49]} 43. Rxe7+ {[%clk 0:01:31]} 1-0


[Site "https://www.chess.com"]

[Event "Titled Tuesday Blitz June 27 Early 2023"]
[White "Nogerbek, Kazybek"]
[Black "Tari, Aryan"]
[WhiteFideId "13710427"]
[BlackFideId "1510045"]
[WhiteElo "2915"]
[BlackElo "2941"]
[Result "1-0"]
[Round "11"]
[TimeControl "180+2"]
[Date "2023.06.27"]
[WhiteClock "0:00:34"]
[BlackClock "0:00:00"]
[Board "4"]

1. d4 {[%clk 0:03:00]}  d5 {[%clk 0:02:56]} 2. c4 {[%clk 0:03:00]}  e6 {[%clk 0:02:55]} 3. Nf3 {[%clk 0:02:58]}  Nf6 {[%clk 0:02:51]} 4. cxd5 {[%clk 0:02:54]}  exd5 {[%clk 0:02:51]} 5. Nc3 {[%clk 0:02:55]}  c6 {[%clk 0:02:47]} 6. Qc2 {[%clk 0:02:55]}  g6 {[%clk 0:02:47]} 7. Bg5 {[%clk 0:02:55]}  Be7 {[%clk 0:02:41]} 8. e3 {[%clk 0:02:55]}  Bf5 {[%clk 0:02:40]} 9. Bd3 {[%clk 0:02:55]}  Bxd3 {[%clk 0:02:40]} 10. Qxd3 {[%clk 0:02:56]}  Nbd7 {[%clk 0:02:40]} 11. Bh6 {[%clk 0:02:57]}  Ng4 {[%clk 0:02:40]} 12. Bf4 {[%clk 0:02:57]}  O-O {[%clk 0:02:40]} 13. h3 {[%clk 0:02:57]}  Ngf6 {[%clk 0:02:40]} 14. O-O {[%clk 0:02:46]}  Re8 {[%clk 0:02:40]} 15. Rab1 {[%clk 0:02:46]}  a5 {[%clk 0:02:40]} 16. Qc2 {[%clk 0:02:38]}  Bf8 {[%clk 0:02:34]} 17. a3 {[%clk 0:02:33]}  Nb6 {[%clk 0:02:32]} 18. Ne5 {[%clk 0:02:31]}  Nfd7 {[%clk 0:02:31]} 19. Nd3 {[%clk 0:02:31]}  Nc4 {[%clk 0:02:29]} 20. Rfe1 {[%clk 0:02:30]}  b5 {[%clk 0:02:28]} 21. a4 {[%clk 0:02:24]}  b4 {[%clk 0:02:25]} 22. Ne2 {[%clk 0:02:24]}  Qb6 {[%clk 0:01:31]} 23. Rbc1 {[%clk 0:02:23]}  b3 {[%clk 0:01:30]} 24. Qb1 {[%clk 0:02:15]}  Bb4 {[%clk 0:01:20]} 25. Red1 {[%clk 0:02:08]}  Bd2 {[%clk 0:01:20]} 26. Rxc4 {[%clk 0:02:07]}  dxc4 {[%clk 0:01:21]} 27. Rxd2 {[%clk 0:02:08]}  cxd3 {[%clk 0:01:21]} 28. Rxd3 {[%clk 0:02:05]}  Qb4 {[%clk 0:01:19]} 29. Nc3 {[%clk 0:01:54]}  Nb6 {[%clk 0:01:18]} 30. Be5 {[%clk 0:01:47]}  Nc4 {[%clk 0:01:00]} 31. f4 {[%clk 0:01:43]}  f6 {[%clk 0:00:32]} 32. Bxf6 {[%clk 0:01:39]}  Nxe3 {[%clk 0:00:33]} 33. Be5 {[%clk 0:01:25]}  Nd5 {[%clk 0:00:33]} 34. Nxd5 {[%clk 0:01:15]}  cxd5 {[%clk 0:00:33]} 35. f5 {[%clk 0:01:16]}  Qc4 {[%clk 0:00:23]} 36. Rc3 {[%clk 0:00:53]}  Qe2 {[%clk 0:00:20]} 37. fxg6 {[%clk 0:00:49]}  Qe4 {[%clk 0:00:14]} 38. gxh7+ {[%clk 0:00:49]}  Kxh7 {[%clk 0:00:14]} 39. Qd1 {[%clk 0:00:47]}  Qf5 {[%clk 0:00:04]} 40. Rf3 {[%clk 0:00:37]}  Qg6 {[%clk 0:00:04]} 41. Rf6 {[%clk 0:00:35]}  Qg5 {[%clk 0:00:00]} 42. Qd3+ {[%clk 0:00:34]} 1-0


[Site "https://www.chess.com"]

[Event "Titled Tuesday Blitz June 27 Early 2023"]
[White "Bharath Subramaniyam H"]
[Black "Durarbayli, Vasif"]
[WhiteFideId "46634827"]
[BlackFideId "13402935"]
[WhiteElo "2835"]
[BlackElo "2924"]
[Result "0-1"]
[Round "11"]
[TimeControl "180+2"]
[Date "2023.06.27"]
[WhiteClock "0:00:20"]
[BlackClock "0:01:35"]
[Board "12"]

1. e4 {[%clk 0:02:58]}  c5 {[%clk 0:02:56]} 2. Nf3 {[%clk 0:02:58]}  d6 {[%clk 0:02:56]} 3. d4 {[%clk 0:02:59]}  cxd4 {[%clk 0:02:57]} 4. Nxd4 {[%clk 0:02:59]}  Nf6 {[%clk 0:02:58]} 5. Nc3 {[%clk 0:03:00]}  Nc6 {[%clk 0:02:58]} 6. Bc4 {[%clk 0:02:59]}  e6 {[%clk 0:02:58]} 7. Be3 {[%clk 0:02:59]}  a6 {[%clk 0:02:58]} 8. Bb3 {[%clk 0:02:56]}  Na5 {[%clk 0:02:58]} 9. Qe2 {[%clk 0:02:53]}  b5 {[%clk 0:02:56]} 10. O-O-O {[%clk 0:02:49]}  b4 {[%clk 0:02:44]} 11. Na4 {[%clk 0:02:35]}  Nxb3+ {[%clk 0:02:44]} 12. axb3 {[%clk 0:01:58]}  Bd7 {[%clk 0:02:40]} 13. Nf3 {[%clk 0:01:44]}  Bxa4 {[%clk 0:02:29]} 14. bxa4 {[%clk 0:01:44]}  Nxe4 {[%clk 0:02:17]} 15. Qc4 {[%clk 0:01:38]}  Nf6 {[%clk 0:02:14]} 16. Qxb4 {[%clk 0:01:09]}  Be7 {[%clk 0:02:12]} 17. Ne5 {[%clk 0:01:03]}  Qc7 {[%clk 0:01:58]} 18. Nd3 {[%clk 0:00:59]}  O-O {[%clk 0:01:57]} 19. Qb6 {[%clk 0:00:54]}  Qc8 {[%clk 0:01:54]} 20. Nf4 {[%clk 0:00:50]}  Rb8 {[%clk 0:01:54]} 21. Qa5 {[%clk 0:00:47]}  Qb7 {[%clk 0:01:54]} 22. b3 {[%clk 0:00:44]}  Rfc8 {[%clk 0:01:55]} 23. Rd3 {[%clk 0:00:39]}  d5 {[%clk 0:01:49]} 24. Qd2 {[%clk 0:00:35]}  Ne4 {[%clk 0:01:49]} 25. Qe2 {[%clk 0:00:32]}  Nc3 {[%clk 0:01:49]} 26. Qf3 {[%clk 0:00:31]}  Ba3+ {[%clk 0:01:42]} 27. Kd2 {[%clk 0:00:31]}  Ne4+ {[%clk 0:01:42]} 28. Kd1 {[%clk 0:00:32]}  Qc6 {[%clk 0:01:40]} 29. Bd2 {[%clk 0:00:26]}  Qxc2+ {[%clk 0:01:39]} 30. Ke2 {[%clk 0:00:26]}  Rxb3 {[%clk 0:01:37]} 31. Rd1 {[%clk 0:00:24]}  Rxd3 {[%clk 0:01:35]} 32. Qxd3 {[%clk 0:00:20]}  Nc3+ {[%clk 0:01:35]} 0-1


[Site "https://www.chess.com"]

[Event "Titled Tuesday Blitz June 27 Early 2023"]
[White "Harsh Suresh"]
[Black "Ter-Sahakyan, Samvel"]
[WhiteFideId "45018464"]
[BlackFideId "13302531"]
[WhiteElo "2834"]
[BlackElo "2904"]
[Result "0-1"]
[Round "11"]
[TimeControl "180+2"]
[Date "2023.06.27"]
[WhiteClock "0:02:13"]
[BlackClock "0:02:19"]
[Board "14"]

1. e4 {[%clk 0:03:00]}  c5 {[%clk 0:02:59]} 2. Nf3 {[%clk 0:03:00]}  d6 {[%clk 0:03:00]} 3. Bb5+ {[%clk 0:02:59]}  Nc6 {[%clk 0:02:59]} 4. O-O {[%clk 0:02:54]}  Bd7 {[%clk 0:02:58]} 5. Re1 {[%clk 0:02:54]}  Nf6 {[%clk 0:02:57]} 6. c3 {[%clk 0:02:53]}  a6 {[%clk 0:02:55]} 7. Bf1 {[%clk 0:02:53]}  Bg4 {[%clk 0:02:54]} 8. h3 {[%clk 0:02:52]}  Bxf3 {[%clk 0:02:52]} 9. Qxf3 {[%clk 0:02:51]}  e6 {[%clk 0:02:53]} 10. d3 {[%clk 0:02:48]}  Be7 {[%clk 0:02:52]} 11. Bf4 {[%clk 0:02:45]}  Rg8 {[%clk 0:02:49]} 12. Qe2 {[%clk 0:02:39]}  g5 {[%clk 0:02:47]} 13. Be3 {[%clk 0:02:39]}  g4 {[%clk 0:02:46]} 14. h4 {[%clk 0:02:37]}  g3 {[%clk 0:02:46]} 15. fxg3 {[%clk 0:02:36]}  Rxg3 {[%clk 0:02:39]} 16. Bf2 {[%clk 0:02:37]}  Rg8 {[%clk 0:02:37]} 17. Nd2 {[%clk 0:02:36]}  Ne5 {[%clk 0:02:32]} 18. Nf3 {[%clk 0:02:35]}  Nxf3+ {[%clk 0:02:30]} 19. Qxf3 {[%clk 0:02:35]}  Ng4 {[%clk 0:02:30]} 20. h5 {[%clk 0:02:20]}  Nxf2 {[%clk 0:02:24]} 21. Qxf2 {[%clk 0:02:21]}  Bh4 {[%clk 0:02:24]} 22. Qf4 {[%clk 0:02:20]}  Bg3 {[%clk 0:02:21]} 23. Qh6 {[%clk 0:02:18]}  Qh4 {[%clk 0:02:19]} 24. Be2 {[%clk 0:02:12]}  Qh2+ {[%clk 0:02:19]} 25. Kf1 {[%clk 0:02:13]}  Qh1# {[%clk 0:02:19]} 0-1


[Site "https://www.chess.com"]

[Event "Titled Tuesday Blitz June 27 Early 2023"]
[White "Matinian, Nikita"]
[Black "Sethuraman, S.P."]
[WhiteFideId "24129100"]
[BlackFideId "5021596"]
[WhiteElo "2735"]
[BlackElo "2813"]
[Result "1-0"]
[Round "11"]
[TimeControl "180+2"]
[Date "2023.06.27"]
[WhiteClock "0:01:15"]
[BlackClock "0:00:00"]
[Board "15"]

1. e4 {[%clk 0:03:00]}  c5 {[%clk 0:02:59]} 2. Nf3 {[%clk 0:03:01]}  d6 {[%clk 0:03:00]} 3. d4 {[%clk 0:03:01]}  cxd4 {[%clk 0:03:01]} 4. Nxd4 {[%clk 0:03:02]}  Nf6 {[%clk 0:03:01]} 5. Nc3 {[%clk 0:03:02]}  Nc6 {[%clk 0:03:01]} 6. Bg5 {[%clk 0:03:02]}  e6 {[%clk 0:03:02]} 7. Qd3 {[%clk 0:03:01]}  h6 {[%clk 0:02:56]} 8. Bxf6 {[%clk 0:02:53]}  gxf6 {[%clk 0:02:56]} 9. O-O-O {[%clk 0:02:47]}  a6 {[%clk 0:02:56]} 10. f4 {[%clk 0:02:47]}  Bd7 {[%clk 0:02:54]} 11. Be2 {[%clk 0:02:42]}  Be7 {[%clk 0:02:51]} 12. Bh5 {[%clk 0:02:42]}  Qa5 {[%clk 0:02:43]} 13. f5 {[%clk 0:02:29]}  Nb4 {[%clk 0:02:29]} 14. Qc4 {[%clk 0:01:56]}  Rc8 {[%clk 0:02:28]} 15. Qb3 {[%clk 0:01:55]}  Kf8 {[%clk 0:01:20]} 16. Bxf7 {[%clk 0:01:54]}  exf5 {[%clk 0:01:02]} 17. exf5 {[%clk 0:01:43]}  d5 {[%clk 0:00:56]} 18. Be6 {[%clk 0:01:43]}  Rxc3 {[%clk 0:00:50]} 19. bxc3 {[%clk 0:01:43]}  Nxa2+ {[%clk 0:00:41]} 20. Kb2 {[%clk 0:01:44]}  Ba4 {[%clk 0:00:31]} 21. Qxa2 {[%clk 0:01:37]}  Kg7 {[%clk 0:00:24]} 22. Rd3 {[%clk 0:01:37]}  Rd8 {[%clk 0:00:19]} 23. Re1 {[%clk 0:01:32]}  Rd6 {[%clk 0:00:15]} 24. Bxd5 {[%clk 0:01:31]}  Bd8 {[%clk 0:00:07]} 25. Bb3 {[%clk 0:01:25]}  Rb6 {[%clk 0:00:04]} 26. Ne6+ {[%clk 0:01:23]}  Kh7 {[%clk 0:00:04]} 27. Nxd8 {[%clk 0:01:19]}  Qxf5 {[%clk 0:00:00]} 28. Re7+ {[%clk 0:01:15]} 1-0


[Site "https://www.chess.com"]